lending/lending_fUSD_20251018
["ID","MTS","AMOUNT","RATE_DAILY","PERIOD"]
[391742833,1760766477088,-1478.0,0.00039966,30]
[391742834,1760766477114,-151.0,0.0003997,120]
[391742835,1760766477139,-189.702684,0.0003997,120]
[391742836,1760766477164,-151.0,0.0003997,120]
[391742837,1760766477190,-151.1804736,0.0003997,120]
[391742838,1760766477217,-151.0,0.0003997,30]
[391742839,1760766477243,-151.0,0.0003997,120]
[391742840,1760766477269,-151.0,0.0003997,120]
[391742841,1760766477294,-206.07915691,0.0003997,120]
[391742842,1760766477319,-1314276.1628088,0.0003998,30]
[391742843,1760766477344,-151.0,0.0003998,120]
[391742844,1760766477369,-151.0,0.0003998,120]
[391742845,1760766477394,-151.0,0.0003998,30]
[391742846,1760766477419,-152.035995,0.0003998,120]
[391742847,1760766477444,-280.491918,0.0003998,120]
[391742848,1760766477470,-151.0,0.0003998,60]
[391742849,1760766477495,-197.209914,0.0003998,120]
[391742850,1760766477524,-197.209914,0.0003998,120]
[391742851,1760766477550,-197.209914,0.0003998,120]
[391742852,1760766477575,-197.20991979,0.0003998,120]
[391742853,1760766477605,-401.509904,0.0003998,120]
[391742854,1760766477630,-151.0,0.0003998,120]
[391742855,1760766477656,-401.509904,0.0003998,120]
[391742856,1760766477683,-401.509904,0.0003998,120]
[391742857,1760766477708,-401.509901,0.0003998,120]
[391742858,1760766477734,-167.966059,0.0003998,120]
[391742859,1760766477761,-151.0,0.0003998,120]
[391742860,1760766477790,-151.0,0.0003998,120]
[391742861,1760766477817,-151.0,0.0003998,120]
[391742862,1760766477842,-288.189784,0.0003998,120]
[391742863,1760766477868,-162.224538,0.0003998,120]
[391742864,1760766477896,-162.224538,0.0003998,120]
[391742865,1760766477922,-162.224538,0.0003998,120]
[391742866,1760766477949,-162.224529,0.0003998,120]
[391742867,1760766477976,-228.2228596,0.00039999,31]
[391742868,1760766478003,-500.0,0.00039999,31]
[391742869,1760766478030,-328.85698788,0.00039999,31]
[391742870,1760766478056,-349.0,0.0004,120]
[391742871,1760766478081,-2607.95569,0.0004,90]
[391742872,1760766478109,-337.82366631,0.0004,120]
[391742873,1760766478134,-54551.11979059,0.0004,120]
[391742874,1760766478159,-1856.13164766,0.0004,120]
[391742875,1760766478184,-661.86217465,0.0004,30]
[391742876,1760766478210,-927.74466825,0.0004,120]
[391742877,1760766478235,-204.41360584,0.0004,30]
[391742878,1760766478260,-2306.70272164,0.0004,120]
[391742879,1760766478286,-108264.82668771,0.0004,30]
[391742880,1760766478311,-2291.5609313,0.0004,120]
[391742881,1760766478336,-719.184267,0.0004,30]
[391742882,1760766478361,-519.06717968,0.0004,120]
[391742883,1760766478386,-1989.66198057,0.0004,120]
[391742884,1760766478552,-2673.75435802,0.0004,120]
[391742885,1760766478579,-231.51852236,0.0004,120]
[391742886,1760766478610,-7555.62184563,0.0004,120]
[391742887,1760766478634,-1133.31713148,0.0004,120]
[391742888,1760766478659,-1198.11783255,0.0004,120]
[391742889,1760766478684,-495.24685724,0.0004,120]
[391742890,1760766478709,-1105.0024428,0.0004,30]
[391742891,1760766478734,-2596.59128746,0.0004,30]
[391742892,1760766478759,-11500.95686108,0.0004,120]
[391742893,1760766478784,-500.0,0.0004,30]
[391742894,1760766478809,-2014.78105189,0.0004,120]
[391742895,1760766478834,-1523.00248362,0.0004,120]
[391742896,1760766478861,-477.12749073,0.0004,30]
[391742897,1760766478888,-30000.0,0.0004,120]
[391742898,1760766478913,-29537.0,0.0004,60]
[391742899,1760766478938,-204066.36428213,0.0004,30]
[391742900,1760766478963,-292.633,0.0004,120]
[391742901,1760766478988,-2077.0142589,0.0004,120]
[391742902,1760766479013,-648.0,0.0004,60]
[391742903,1760766479040,-1000.0,0.0004,60]
[391742904,1760766479066,-269.8981137,0.0004,120]
[391742905,1760766479091,-207.69093257,0.0004,30]
[391742906,1760766479116,-200.0,0.0004,120]
[391742907,1760766479141,-1000.0,0.0004,120]
[391742908,1760766479167,-400.0,0.0004,120]
[391742909,1760766479194,-1700.0,0.0004,120]
[391742910,1760766479219,-151.321672,0.0004,120]
[391742911,1760766479244,-151.0,0.0004,120]
[391742912,1760766479270,-151.0,0.0004,30]
[391742913,1760766479297,-258.24,0.0004,120]
[391742914,1760766479323,-1004.41,0.00040165,120]
[391742915,1760766479348,-818.4390157,0.00040183,120]
[391742916,1760766479374,-156.0,0.000402,120]
[391742917,1760766479400,-5366.88,0.0004028,90]
[391742918,1760766479426,-1478.0,0.00040378,30]
[391742919,1760766479452,-10669.81,0.000404,30]
[391742920,1760766479478,-184.91,0.0004048,120]
[391742921,1760766479504,-1000.0,0.000405,120]
[391742922,1760766479530,-981.14771205,0.00040612,120]
[391742923,1760766479556,-2009.0,0.000407,120]
[391742924,1760766479583,-1478.0,0.0004079,30]
[391742925,1760766479611,-267.22547569,0.000408,60]
[391742926,1760766479637,-195.43,0.000408,30]
[391742927,1760766479664,-197.54351674,0.000409,120]
[391742928,1760766479691,-237631.10462953,0.00040998,60]
[391742929,1760766479718,-2571.18153825,0.00041,30]
[391742930,1760766479745,-3845.13717553,0.00041,120]
[391742931,1760766479772,-571.8,0.00041,120]
[391742932,1760766479799,-505.17015652,0.00041,30]
[391742933,1760766479826,-1000.0,0.00041,60]
[391742934,1760766479854,-2156.30657967,0.00041,120]
[391742935,1760766479882,-10669.81,0.00041,30]
[391742936,1760766479909,-200.0,0.00041,120]
[391742937,1760766479935,-177.0,0.00041,90]
[391742938,1760766479963,-10000.0,0.00041095,60]
[391742939,1760766479993,-500.0,0.00041096,30]
[391742940,1760766480019,-500.0,0.00041096,30]
[391742941,1760766480047,-500.0,0.00041096,30]
[391742942,1760766480074,-500.0,0.00041096,30]
[391742943,1760766480104,-500.0,0.00041096,30]
[391742944,1760766480132,-500.0,0.00041096,30]
[391742945,1760766480160,-500.0,0.00041096,30]
[391742946,1760766480188,-503.0,0.00041096,30]
[391742947,1760766480216,-500.0,0.00041096,30]
[391742948,1760766480245,-500.0,0.00041096,30]
[391742949,1760766480273,-500.0,0.00041096,30]
[391742950,1760766480301,-500.0,0.00041096,30]
[391742951,1760766480328,-500.0,0.00041096,30]
[391742952,1760766480356,-500.0,0.00041096,30]
[391742953,1760766480384,-500.0,0.00041096,30]
[391742954,1760766480411,-500.0,0.00041096,30]
[391742955,1760766480437,-500.0,0.00041096,30]
[391742956,1760766480463,-500.0,0.00041096,30]
[391742957,1760766480490,-500.0,0.00041096,30]
[391742958,1760766480516,-500.0,0.00041096,30]
[391742959,1760766480542,-500.0,0.00041096,30]
[391742960,1760766480569,-500.0,0.00041096,30]
[391742961,1760766480596,-500.0,0.00041096,30]
[391742962,1760766480622,-500.0,0.00041096,30]
[391742963,1760766480647,-500.0,0.00041096,30]
[391742964,1760766480672,-500.0,0.00041096,30]
[391742965,1760766480698,-500.0,0.00041096,30]
[391742966,1760766480724,-500.0,0.00041096,30]
[391742967,1760766480749,-500.0,0.00041096,30]
[391742968,1760766480775,-500.0,0.00041096,30]
[391742969,1760766480801,-500.0,0.00041096,30]
[391742970,1760766480827,-500.0,0.00041096,30]
[391742971,1760766480853,-500.0,0.00041096,30]
[391742972,1760766480879,-500.0,0.00041096,30]
[391742973,1760766480904,-500.0,0.00041096,30]
[391742974,1760766480929,-500.0,0.00041096,30]
[391742975,1760766480955,-500.0,0.00041096,30]
[391742976,1760766480981,-500.0,0.00041096,30]
[391742977,1760766481007,-500.0,0.00041096,30]
[391742978,1760766481033,-500.0,0.00041096,30]
[391742979,1760766481060,-500.0,0.00041096,30]
[391742980,1760766481085,-500.0,0.00041096,30]
[391742981,1760766481111,-500.0,0.00041096,30]
[391742982,1760766481137,-500.0,0.00041096,30]
[391742983,1760766481163,-500.0,0.00041096,30]
[391742984,1760766481189,-500.0,0.00041096,30]
[391742985,1760766481218,-500.0,0.00041096,30]
[391742986,1760766481244,-500.0,0.00041096,30]
[391742987,1760766481272,-500.0,0.00041096,30]
[391742988,1760766481445,-500.0,0.00041096,30]
[391742989,1760766481473,-500.0,0.00041096,30]
[391742990,1760766481500,-500.0,0.00041096,30]
[391742991,1760766481526,-500.0,0.00041096,30]
[391742992,1760766481552,-484.0,0.00041096,30]
[391742993,1760766481578,-1880.0,0.00041096,120]
[391742994,1760766481611,-151.0,0.000411,120]
[391742995,1760766481638,-2000.0,0.00041143,120]
[391742996,1760766481666,-1091.0,0.00041154,30]
[391742997,1760766481692,-500.0,0.00041155,120]
[391742998,1760766481719,-1478.0,0.00041202,30]
[391742999,1760766481746,-542.33734711,0.00041202,30]
[391743000,1760766481774,-1004.41,0.00041261,120]
[391743001,1760766481806,-150.0,0.00041425,120]
[391743002,1760766481833,-1000.0,0.000415,120]
[391743003,1760766481861,-1478.0,0.00041614,30]
[391743004,1760766481890,-150.0,0.0004162,120]
[391743005,1760766481921,-150.0,0.00041714,120]
[391743006,1760766481948,-150.62,0.00041726,30]
[391743007,1760766481975,-195.43,0.000418,30]
[391743008,1760766482003,-200.0,0.00041911,120]
[391743009,1760766482034,-1093.6,0.00041918,30]
[391743010,1760766482060,-170.92,0.00041918,30]
[391743011,1760766482087,-827.46,0.00041918,30]
[391743012,1760766482114,-300.0,0.00041999,30]
[391743013,1760766482140,-2025.45311436,0.00042,120]
[391743014,1760766482168,-20621.36045551,0.00042,30]
[391743016,1760766486736,-191.13416905,0.000372,120]
[391743017,1760766486762,-191.13416905,0.000372,120]
[391743018,1760766486794,-178.131024,0.00037613,120]
[391743019,1760766486821,-151.0,0.00037613,120]
[391743020,1760766486848,-178.131024,0.00037613,120]
[391743021,1760766486875,-178.131024,0.00037613,120]
[391743022,1760766486904,-178.131024,0.0003775,120]
[391743023,1760766486932,-178.131024,0.0003775,120]
[391743024,1760766486960,-178.131024,0.0003775,120]
[391743025,1760766486991,-151.0,0.00038312,120]
[391743026,1760766487019,-178.131024,0.00038312,120]
[391743027,1760766487045,-178.131024,0.00038312,120]
[391743028,1760766487072,-178.131024,0.00038312,120]
[391743029,1760766487102,-178.131024,0.00038544,120]
[391743030,1760766487129,-151.0,0.00038544,120]
[391743031,1760766487158,-178.131024,0.00038544,120]
[391743032,1760766487188,-178.131024,0.00038544,120]
[391743033,1760766487218,-178.131024,0.00038544,120]
[391743034,1760766487250,-178.131024,0.000388,120]
[391743035,1760766487280,-151.0,0.000388,120]
[391743036,1760766487307,-178.131024,0.000388,120]
[391743037,1760766487337,-178.131024,0.000388,120]
[391743038,1760766487363,-178.131032,0.000388,120]
[391743039,1760766487393,-191.13416905,0.000409,120]
[391743040,1760766487420,-1342.19985296,0.00041034,30]
[391743041,1760766487462,-151.0,0.00041998,30]
[391743042,1760766487489,-151.0,0.00041998,30]
[391743043,1760766487732,-160.0,0.00041998,30]
[391743044,1760766487766,-6888.0,0.00041998,30]
[391743045,1760766487795,-100771.16666848,0.00042,30]
[391743046,1760766487823,-112900.55547941,0.00042,30]
[391743047,1760766487851,-238800.70344655,0.00042,30]
[391743048,1760766487877,-514.27585391,0.00042,120]
[391743049,1760766487909,-1610.9440478,0.00042,120]
[391743050,1760766487934,-658.0770571,0.00042,120]
[391743051,1760766487960,-2000.0,0.00042,120]
[391743052,1760766487988,-1835.20707921,0.00042,120]
[391743053,1760766488016,-1000.0,0.00042,120]
[391743054,1760766488046,-1000.0,0.00042,60]
[391743055,1760766488074,-159.85648307,0.00042,120]
[391743056,1760766488103,-177.0612318,0.00042,30]
[391743057,1760766488131,-400.0,0.00042,120]
[391743058,1760766488159,-1213.4,0.00042,30]
[391743059,1760766488189,-1093.6,0.00042,30]
[391743060,1760766488219,-1478.0,0.00042026,30]
[391743061,1760766488248,-100572.52858159,0.0004215,30]
[391743062,1760766488280,-1004.41,0.00042356,120]
[391743063,1760766488309,-800.0,0.00042379,60]
[391743064,1760766488337,-2000.0,0.00042379,60]
[391743065,1760766488369,-64882.26998745,0.000424,120]
[391743066,1760766488397,-1478.0,0.00042438,30]
[391743067,1760766488426,-10000.0,0.00042465,65]
[391743068,1760766488457,-50223.24573163,0.000425,60]
[391743069,1760766488487,-1000.0,0.000425,120]
[391743070,1760766488522,-151.0,0.000425,120]
[391743071,1760766488553,-989.76765351,0.000426,120]
[391743072,1760766488583,-41635.26182485,0.000426,120]
[391743073,1760766488621,-714.044257,0.00042643,120]
[391743074,1760766488652,-500.0,0.00042667,120]
[391743075,1760766488685,-981.14771205,0.0004278,120]
[391743076,1760766488714,-195.43,0.000428,30]
[391743077,1760766488742,-1329.20089613,0.0004288,120]
[391743078,1760766488770,-2000000.0,0.0004288,120]
[391743079,1760766488798,-185101.45760827,0.0004288,30]
[391743080,1760766488826,-1000.0,0.00043,60]
[391743081,1760766488858,-262.2,0.00043,120]
[391743082,1760766488890,-8141.32213882,0.00043,120]
[391743083,1760766488923,-1655.27,0.00043,90]
[391743084,1760766488955,-200.0,0.00043045,120]
[391743085,1760766488987,-1631.78885423,0.0004328,90]
[391743086,1760766489022,-150.0,0.00043294,120]
[391743087,1760766489058,-1091.0,0.0004332,30]
[391743088,1760766489092,-43799.97763103,0.00043444,30]
[391743091,1760766495882,-151.0,0.00037613,120]
[391743092,1760766495912,-151.0,0.00037613,120]
[391743093,1760766495944,-151.0,0.0003775,120]
[391743094,1760766495972,-151.0,0.0003775,120]
[391743095,1760766496004,-151.0,0.00038312,120]
[391743096,1760766496032,-151.0,0.00038312,120]
[391743097,1760766496063,-151.0,0.00038544,120]
[391743098,1760766496091,-151.0,0.00038544,120]
[391743099,1760766496123,-151.0,0.000388,120]
[391743100,1760766496151,-167.066304,0.000388,120]
[391743101,1760766496183,-151.0,0.0004,120]
[391743102,1760766496412,-3122.88030604,0.00041937,120]
[391743103,1760766496441,-1000.0,0.00041998,30]
[391743104,1760766496470,-300.0,0.00041998,30]
[391743105,1760766496498,-151.0,0.00041998,30]
[391743106,1760766496524,-520.0,0.00041998,30]
[391743107,1760766496552,-1000.0,0.00041998,30]
[391743108,1760766496580,-7142.856,0.00041998,30]
[391743109,1760766496611,-151.0,0.00041998,30]
[391743110,1760766496638,-311.10000001,0.00041998,30]
[391743111,1760766496666,-151.0,0.00041998,30]
[391743112,1760766496693,-160.0,0.00041998,30]
[391743113,1760766496721,-539.24,0.00041998,30]
[391743114,1760766496748,-1000.0,0.00041998,30]
[391743115,1760766496776,-7407.141672,0.00041998,30]
[391743116,1760766496805,-151.0,0.00041998,30]
[391743117,1760766496833,-160.0,0.00041998,30]
[391743118,1760766496860,-559.19188,0.00041998,30]
[391743119,1760766496885,-151.0,0.00041998,30]
[391743120,1760766496913,-1000.0,0.00041998,30]
[391743121,1760766496940,-7681.20591386,0.00041998,30]
[391743122,1760766496966,-151.0,0.00041998,30]
[391743123,1760766496993,-160.0,0.00041998,30]
[391743124,1760766497020,-579.88197956,0.00041998,30]
[391743125,1760766497048,-151.0,0.00041998,30]
[391743126,1760766497076,-1000.0,0.00041998,30]
[391743127,1760766497105,-1000.0,0.00041998,30]
[391743128,1760766497133,-151.0,0.00041998,30]
[391743129,1760766497160,-7965.41053268,0.00041998,30]
[391743130,1760766497187,-601.3376128,0.00041998,30]
[391743131,1760766497214,-151.0,0.00041998,30]
[391743132,1760766497242,-1000.0,0.00041998,30]
[391743133,1760766497269,-1000.0,0.00041998,30]
[391743134,1760766497297,-151.0,0.00041998,30]
[391743135,1760766497324,-8260.13072239,0.00041998,30]
[391743136,1760766497351,-623.58710448,0.00041998,30]
[391743137,1760766497377,-151.0,0.00041998,30]
[391743138,1760766497405,-151.0,0.00041998,30]
[391743139,1760766497432,-220.0,0.00041998,30]
[391743140,1760766497460,-1000.0,0.00041998,30]
[391743141,1760766497487,-1000.0,0.00041998,30]
[391743142,1760766497514,-151.0,0.00041998,30]
[391743143,1760766497541,-8565.75555911,0.00041998,30]
[391743144,1760766497568,-646.65982734,0.00041998,30]
[391743145,1760766497597,-151.0,0.00041998,30]
[391743146,1760766497622,-220.0,0.00041998,30]
[391743147,1760766497650,-1000.0,0.00041998,30]
[391743148,1760766497677,-160.0,0.00041998,30]
[391743149,1760766497704,-1000.0,0.00041998,30]
[391743150,1760766497731,-151.0,0.00041998,30]
[391743151,1760766497759,-8882.6885148,0.00041998,30]
[391743152,1760766497786,-151.0,0.00041998,30]
[391743153,1760766497814,-670.58624095,0.00041998,30]
[391743154,1760766497841,-151.0,0.00041998,30]
[391743155,1760766497868,-220.0,0.00041998,30]
[391743156,1760766497896,-160.0,0.00041998,30]
[391743157,1760766497925,-1000.0,0.00041998,30]
[391743158,1760766497954,-1000.0,0.00041998,30]
[391743159,1760766497985,-9211.34798985,0.00041998,30]
[391743160,1760766498017,-151.0,0.00041998,30]
[391743161,1760766498047,-695.39793186,0.00041998,30]
[391743162,1760766498078,-151.0,0.00041998,30]
[391743163,1760766498107,-1000.0,0.00041998,30]
[391743164,1760766498136,-160.0,0.00041998,30]
[391743165,1760766498166,-1000.0,0.00041998,30]
[391743166,1760766498196,-9552.16786547,0.00041998,30]
[391743167,1760766498225,-151.0,0.00041998,30]
[391743168,1760766498252,-160.0,0.00041998,30]
[391743169,1760766498281,-250.0,0.00041998,30]
[391743170,1760766498310,-1000.0,0.00041998,30]
[391743171,1760766498338,-1000.0,0.00041998,30]
[391743172,1760766498366,-151.0,0.00041998,30]
[391743173,1760766498394,-9905.5980765,0.00041998,30]
[391743174,1760766498422,-250.0,0.00041998,30]
[391743175,1760766498450,-160.0,0.00041998,30]
[391743176,1760766498478,-1000.0,0.00041998,30]
[391743177,1760766498506,-1000.0,0.00041998,30]
[391743178,1760766498535,-10272.10520533,0.00041998,30]
[391743179,1760766498562,-151.0,0.00041998,30]
[391743180,1760766498593,-250.0,0.00041998,30]
[391743181,1760766498622,-1000.0,0.00041998,30]
[391743182,1760766498651,-1000.0,0.00041998,30]
[391743183,1760766498679,-10652.17309792,0.00041998,30]
[391743184,1760766498706,-151.0,0.00041998,30]
[391743185,1760766498733,-250.0,0.00041998,30]
[391743186,1760766498760,-1000.0,0.00041998,30]
[391743187,1760766498793,-1000.0,0.00041998,30]
[391743188,1760766498820,-250.0,0.00041998,30]
[391743189,1760766498848,-151.0,0.00041998,30]
[391743190,1760766498875,-11046.30350255,0.00041998,30]
[391743191,1760766498903,-500.0,0.00041998,30]
[391743192,1760766498930,-250.0,0.00041998,30]
[391743193,1760766498959,-300.0,0.00041999,30]
[391743194,1760766498987,-151.0,0.00042,120]
[391743195,1760766499020,-600.0,0.00042436,60]
[391743196,1760766499055,-104055.93766897,0.00043444,30]
[391743197,1760766499084,-1004.41,0.00043452,120]
[391743198,1760766499110,-800.0,0.00043475,60]
[391743199,1760766499264,-2000.0,0.00043475,60]
[391743200,1760766499304,-1000.0,0.000435,120]
[391743201,1760766499344,-600.0,0.00043532,60]
[391743202,1760766499376,-150.0,0.00043674,120]
[391743203,1760766499407,-150.0,0.00043768,30]
[391743204,1760766499436,-150.0,0.00043768,30]
[391743205,1760766499464,-150.0,0.00043768,30]
[391743206,1760766499491,-150.0,0.00043768,30]
[391743207,1760766499518,-150.0,0.00043768,30]
[391743208,1760766499546,-150.0,0.00043768,30]
[391743209,1760766499573,-150.0,0.00043768,30]
[391743210,1760766499605,-150.0,0.00043768,30]
[391743211,1760766499632,-150.0,0.00043768,30]
[391743212,1760766499660,-150.0,0.00043768,30]
[391743213,1760766499689,-150.0,0.00043768,30]
[391743214,1760766499716,-150.81,0.00043768,30]
[391743215,1760766499745,-1137.200003,0.000438,120]
[391743216,1760766499774,-1055.215577,0.000438,120]
[391743217,1760766499803,-503.09,0.000438,120]
[391743218,1760766499832,-195.43,0.000438,30]
[391743219,1760766499860,-500.0,0.00043835,120]
[391743220,1760766499890,-500.0,0.00043835,120]
[391743221,1760766499918,-500.0,0.00043835,120]
[391743222,1760766499946,-500.0,0.00043835,120]
[391743223,1760766499975,-500.0,0.00043835,120]
[391743224,1760766500002,-500.0,0.00043835,120]
[391743225,1760766500031,-500.0,0.00043835,120]
[391743226,1760766500058,-500.0,0.00043835,120]
[391743227,1760766500087,-10000.0,0.00043835,70]
[391743228,1760766500114,-1026.91,0.00043835,120]
[391743229,1760766500147,-500.0,0.00043835,120]
[391743230,1760766500176,-259.3272583,0.00043835,120]
[391743231,1760766500207,-500.0,0.00043835,120]
[391743232,1760766500236,-500.0,0.00043835,120]
[391743233,1760766500265,-579.25,0.00043835,120]
[391743234,1760766500294,-500.0,0.00043835,120]
[391743235,1760766500323,-4502.21,0.00043835,120]
[391743236,1760766500351,-500.0,0.00043835,120]
[391743237,1760766500381,-576.72,0.00043835,120]
[391743238,1760766500408,-500.0,0.00043835,120]
[391743239,1760766500437,-500.0,0.00043835,120]
[391743240,1760766500465,-500.0,0.00043835,120]
[391743241,1760766500493,-500.0,0.00043835,120]
[391743242,1760766500519,-600.0,0.00043879,120]
[391743243,1760766500548,-151.0,0.000439,120]
[391743244,1760766500576,-218.94971634,0.00044,120]
[391743245,1760766500604,-1000.0,0.00044,60]
[391743246,1760766500631,-400.0,0.00044,120]
[391743247,1760766500658,-544.282314,0.00044,57]
[391743248,1760766500685,-500.0,0.00044109,120]
[391743249,1760766500712,-500.0,0.00044109,120]
[391743250,1760766500738,-500.0,0.00044109,120]
[391743251,1760766500764,-500.0,0.00044109,120]
[391743252,1760766500791,-500.0,0.00044109,120]
[391743253,1760766500818,-500.0,0.00044109,120]
[391743254,1760766500846,-500.0,0.00044109,120]
[391743255,1760766500874,-500.0,0.00044109,120]
[391743256,1760766500901,-1026.91,0.00044109,120]
[391743257,1760766500930,-500.0,0.00044109,120]
[391743258,1760766500958,-500.0,0.00044109,120]
[391743259,1760766500988,-500.0,0.00044109,120]
[391743260,1760766501017,-579.25,0.00044109,120]
[391743261,1760766501046,-500.0,0.00044109,120]
[391743262,1760766501077,-4502.21,0.00044109,120]
[391743263,1760766501107,-500.0,0.00044109,120]
[391743264,1760766501137,-576.72,0.00044109,120]
[391743265,1760766501167,-500.0,0.00044109,120]
[391743266,1760766501200,-500.0,0.00044109,120]
[391743267,1760766501232,-500.0,0.00044109,120]
[391743268,1760766501262,-565.37327034,0.00044109,120]
[391743269,1760766501291,-158.306,0.00044125,120]
[391743270,1760766501320,-158.307,0.00044125,120]
[391743271,1760766501349,-158.306,0.00044125,120]
[391743272,1760766501378,-158.307,0.00044125,120]
[391743273,1760766501406,-1592.35,0.00044136,120]
[391743274,1760766501434,-1592.35,0.00044136,120]
[391743275,1760766501461,-1592.35,0.00044136,120]
[391743276,1760766501488,-1592.35,0.00044136,120]
[391743277,1760766501516,-1592.35,0.00044136,120]
[391743278,1760766501542,-1592.35,0.00044136,120]
[391743279,1760766501568,-1592.35,0.00044136,120]
[391743280,1760766501599,-1592.35,0.00044136,120]
[391743281,1760766501625,-1592.35,0.00044136,120]
[391743282,1760766501654,-1592.35,0.00044136,120]
[391743283,1760766501681,-1592.35,0.00044136,120]
[391743284,1760766501707,-1592.35,0.00044136,120]
[391743285,1760766501734,-1592.35,0.00044136,120]
[391743286,1760766501760,-1592.35,0.00044136,120]
[391743287,1760766501787,-1592.35,0.00044136,120]
[391743288,1760766501814,-1592.35,0.00044136,120]
[391743289,1760766501841,-1592.35,0.00044136,120]
[391743290,1760766501868,-1592.35,0.00044136,120]
[391743291,1760766501895,-1592.35,0.00044136,120]
[391743292,1760766501921,-1592.35,0.00044136,120]
[391743293,1760766501950,-1592.35,0.00044136,120]
[391743294,1760766501976,-1592.35,0.00044136,120]
[391743295,1760766502003,-1592.35,0.00044136,120]
[391743296,1760766502031,-1592.52630958,0.00044136,120]
[391743297,1760766502060,-500.0,0.00044179,120]
[391743298,1760766502087,-200.0,0.00044179,120]
[391743299,1760766502115,-756.02826367,0.000442,30]
[391743300,1760766502142,-9042.94639047,0.00044246,120]
[391743301,1760766502168,-1168.00399451,0.00044246,120]
[391743302,1760766502197,-664.79,0.00044285,120]
[391743303,1760766502355,-150.0,0.0004432,120]
[391743304,1760766502388,-500.0,0.00044383,120]
[391743305,1760766502416,-500.0,0.00044383,120]
[391743306,1760766502444,-500.0,0.00044383,120]
[391743307,1760766502471,-500.0,0.00044383,120]
[391743308,1760766502498,-500.0,0.00044383,120]
[391743309,1760766502525,-578.28620324,0.00044383,120]
[391743310,1760766502553,-500.0,0.00044383,120]
[391743311,1760766502580,-500.0,0.00044383,120]
[391743312,1760766502607,-1026.91,0.00044383,120]
[391743313,1760766502634,-500.0,0.00044383,120]
[391743314,1760766502660,-500.0,0.00044383,120]
[391743315,1760766502689,-497.97635329,0.00044383,120]
[391743316,1760766502716,-579.25,0.00044383,120]
[391743317,1760766502743,-574.89305494,0.00044383,120]
[391743318,1760766502771,-4502.21,0.00044383,120]
[391743319,1760766502799,-500.0,0.00044383,120]
[391743320,1760766502828,-576.72,0.00044383,120]
[391743321,1760766502858,-500.0,0.00044383,120]
[391743322,1760766502888,-483.3198623,0.00044383,120]
[391743323,1760766502917,-500.0,0.00044383,120]
[391743324,1760766502946,-209890.72797106,0.00044444,120]
[391743325,1760766502974,-379.15391377,0.000445,120]
[391743326,1760766503002,-771.35134185,0.000445,120]
[391743327,1760766503031,-150.0,0.00044532,30]
[391743328,1760766503060,-481.01107756,0.00044532,30]
[391743329,1760766503089,-5747.51360159,0.00044532,30]
[391743330,1760766503118,-150.0,0.00044532,30]
[391743331,1760766503149,-1004.41,0.00044548,120]
[391743332,1760766503177,-800.0,0.00044571,60]
[391743333,1760766503204,-2000.0,0.00044571,60]
[391743334,1760766503232,-600.0,0.00044628,60]
[391743335,1760766503260,-1635.173973,0.00044642,120]